[Event "IV Open RGCC 2018"]
[Site "Gijon"]
[Date "2018.07.25"]
[Round "3"]
[White "Manolache, Marius"]
[Black "Prieto Aranguren, Alain"]
[Result "1-0"]
[ECO "A45"]
[WhiteElo "2494"]
[BlackElo "2252"]
[Annotator "ChessBase"]
[PlyCount "64"]
[EventDate "2018.07.24"]
[EventType "swiss"]
[EventCountry "ESP"]
[SourceTitle "playchess.com"]
[Source "ChessBase"]
[SourceQuality "1"]
[TimeControl "5400+30"]

1. d4 Nf6 2. Bg5 c5 3. d5 g6 4. Nc3 Bg7 5. e4 d6 6. Qd2 O-O 7. Bc4 a6 8. a4 Qa5 9. Ra2 Nbd7 10. Nf3 Qb4 11. Bd3 c4 12. Be2 Rb8 13. O-O Re8 14. Rd1 Nc5 15. h3 b5 16. axb5 axb5 17. Be3 Bd7 18. e5 dxe5 19. Nxe5 Rec8 20. Bd4 Be8 21. Bf3 Na4 22. Nxa4 Qxd2 23. Rxd2 bxa4 24. Nc6 Bxc6 25. dxc6 {[%emt 0:58:40]} Ne8 26. Rxa4 Bxd4 27. Rxd4 Nd6 {[%emt 1:10:51]} 28. Ra2 {[%emt 0:04:59]} Rb5 29. Rd1 Kg7 {[%emt 0:33:39]} 30. Kf1 {[%emt 0:11:57]} Kf6 {[%emt 0:00:00]} 31. Rd4 {[%emt 0:00:52]} Ke5 {[%emt 0:00:00]} 32. c3 {[%emt 0:04:20]} f5 {[%emt 0:00:00]} 1-0

[Event "IV Open RGCC 2018"]
[Site "Gijon"]
[Date "2018.07.25"]
[Round "3"]
[White "Ardelean, George-Catalin"]
[Black "Forgas Moreno, Yaniela"]
[Result "1-0"]
[ECO "B92"]
[WhiteElo "2475"]
[BlackElo "2242"]
[Annotator "ChessBase"]
[PlyCount "103"]
[EventDate "2018.07.24"]
[EventType "swiss"]
[EventCountry "ESP"]
[SourceTitle "playchess.com"]
[Source "ChessBase"]
[SourceQuality "1"]
[TimeControl "5400+30"]

1. e4 c5 2. Nf3 d6 3. d4 cxd4 4. Nxd4 Nf6 5. Nc3 a6 6. Be2 e5 7. Nf3 Be7 8. Bg5 Nbd7 9. a4 b6 10. Nd2 Bb7 11. Bc4 O-O 12. O-O Qc7 13. Qe2 Rfe8 14. Rfd1 h6 15. Bxf6 Nxf6 16. Nf1 Qc5 17. Bd5 Nxd5 18. Nxd5 Rac8 19. c3 Bg5 20. g3 f5 21. h4 Bd8 22. Nfe3 f4 23. b4 Qc6 24. Nf5 Kh7 25. Qg4 Qd7 26. h5 Kh8 27. Ra2 Bxd5 28. Rxd5 Bc7 29. b5 Bb8 30. Ra3 fxg3 31. Qxg3 Rc4 32. Qd3 Rec8 33. bxa6 Qf7 34. Qf3 g6 35. hxg6 Qxg6+ 36. Kf1 Qg5 37. Ne3 R4c7 38. Rxd6 Rg7 39. Rf6 Qg1+ 40. Ke2 Qc1 41. Rf8+ Rxf8 42. Qxf8+ Kh7 43. Qf5+ Kg8 44. Rb3 Ba7 45. Qc8+ Kh7 46. Rb5 Rf7 47. Qe6 Rc7 48. Qf5+ Kg8 49. Rd5 Qb2+ 50. Rd2 Qxc3 51. Qg6+ Kf8 52. Qf6+ 1-0

[Event "IV Open RGCC 2018"]
[Site "Gijon"]
[Date "2018.07.25"]
[Round "3"]
[White "Vinuela Diaz, Saul"]
[Black "Kaczur, Florian"]
[Result "1/2-1/2"]
[ECO "A09"]
[WhiteElo "2230"]
[BlackElo "2471"]
[Annotator "ChessBase"]
[PlyCount "102"]
[EventDate "2018.07.24"]
[EventType "swiss"]
[EventCountry "ESP"]
[SourceTitle "playchess.com"]
[Source "ChessBase"]
[SourceQuality "1"]
[TimeControl "5400+30"]

1. Nf3 d5 2. c4 d4 3. g3 g6 4. Bg2 Bg7 5. O-O e5 6. d3 Ne7 7. b4 O-O 8. Bb2 a5 9. a3 c5 10. Nbd2 Na6 11. Nb3 cxb4 12. axb4 Nxb4 13. Qd2 Nec6 14. Ba3 Rb8 15. Nxa5 Qxa5 16. Rfb1 Ra8 17. Qb2 Bd7 18. Nd2 Qb6 19. Bxb4 Nxb4 20. Rxa8 Rxa8 21. Qxb4 Qxb4 22. Rxb4 Ra1+ 23. Rb1 Rxb1+ 24. Nxb1 b6 25. Na3 Bf8 26. Nb5 Bc5 27. Kf1 Kg7 28. Ke1 g5 29. Kd2 Bb4+ 30. Kd1 f5 31. e3 dxe3 32. fxe3 g4 33. Ke2 h5 34. Kf2 Kf6 35. Bd5 Kg5 36. d4 exd4 37. Nxd4 Kf6 38. Ne2 Be8 39. Nf4 Be7 40. Nd3 Bd6 41. Nf4 Bf8 42. Ke2 Ke5 43. Bg8 Be7 44. Bh7 Ke4 45. Nd5 Bd8 46. Bg8 h4 47. gxh4 Bxh4 48. Nxb6 Bd8 49. Nd5 Bc6 50. Bf7 Bxd5 51. Bxd5+ Ke5 1/2-1/2

[Event "IV Open RGCC 2018"]
[Site "Gijon"]
[Date "2018.07.25"]
[Round "4"]
[White "Valenzuela Gomez, Fernando"]
[Black "Martinez Alcantara, Jose Eduardo"]
[Result "1/2-1/2"]
[ECO "E32"]
[WhiteElo "2389"]
[BlackElo "2545"]
[Annotator "ChessBase"]
[PlyCount "45"]
[EventDate "2018.07.24"]
[EventType "swiss"]
[EventCountry "ESP"]
[SourceTitle "playchess.com"]
[Source "ChessBase"]
[SourceQuality "1"]
[TimeControl "5400+30"]

1. d4 {[%emt 0:00:00]} Nf6 {[%emt 0:00:00]} 2. c4 {[%emt 0:00:09]} e6 {[%emt 0:00:00]} 3. Nc3 {[%emt 0:00:06]} Bb4 {[%emt 0:00:00]} 4. Qc2 {[%emt 0:00:16]} O-O {[%emt 0:00:00]} 5. e4 {[%emt 0:00:08]} d5 {[%emt 0:00:54]} 6. e5 {[%emt 0:00:46]} Ne4 {[%emt 0:00:24]} 7. Bd3 {[%emt 0:00:41]} c5 {[%emt 0:01:35]} 8. Nf3 {[%emt 0:00:38]} cxd4 {[%emt 0:02:17]} 9. Nxd4 {[%emt 0:00:29]} Nd7 {[%emt 0:01:38]} 10. Bf4 {[%emt 0:01:26]} Ndc5 {[%emt 0:01:27]} 11. O-O {[%emt 0:01:37]} Bxc3 {[%emt 0:02:01]} 12. bxc3 {[%emt 0:00:21]} Bd7 {[%emt 0:00:36]} 13. Rfc1 {[%emt 0:10:22]} Rc8 {[%emt 0:04:41]} 14. cxd5 {[%emt 0:12:52]} exd5 {[%emt 0:00:17]} 15. f3 {[%emt 0:00:57]} Nxd3 {[%emt 0:02:00]} 16. Qxd3 {[%emt 0:00:09]} Nc5 {[%emt 0:00:23]} 17. Qd2 {[%emt 0:00:14]} Re8 {[%emt 0:02:48]} 18. Re1 {[%emt 0:04:53]} Qb6 {[%emt 0:00:52]} 19. Kh1 {[%emt 0:03:13]} Qg6 {[%emt 0:01:51]} 20. Re3 {[%emt 0:03:51]} Ne6 {[%emt 0:01:55]} 21. Nxe6 {[%emt 0:02:49]} fxe6 {[%emt 0:00:16]} 22. Rd3 {[%emt 0:01:15]} Rc4 {[%emt 0:02:43]} 23. Be3 {[%emt 0:00:57]} 1/2-1/2

[Event "IV Open RGCC 2018"]
[Site "Gijon"]
[Date "2018.07.25"]
[Round "4"]
[White "Marino Bravo, Miguel Angel"]
[Black "Quesada Perez, Yasser"]
[Result "0-1"]
[ECO "D00"]
[WhiteElo "2194"]
[BlackElo "2531"]
[Annotator "ChessBase"]
[PlyCount "80"]
[EventDate "2018.07.24"]
[EventType "swiss"]
[EventCountry "ESP"]
[SourceTitle "playchess.com"]
[Source "ChessBase"]
[SourceQuality "1"]
[TimeControl "5400+30"]

1. d4 d5 2. Bf4 Nf6 3. e3 e6 4. Nf3 Bd6 5. Bg3 O-O 6. Bd3 b6 7. Qe2 Bb7 8. Nbd2 c5 9. c3 Ne4 10. Ne5 f6 11. Nef3 Qc7 12. Nh4 f5 13. Bxd6 Qxd6 14. Nhf3 Nd7 15. h4 e5 16. Nxe5 Nxe5 17. dxe5 Qxe5 18. O-O-O Qf6 19. f4 Ng3 20. Qf2 Nxh1 21. Rxh1 Rad8 22. Nf3 d4 23. Bc4+ Bd5 24. Bxd5+ Rxd5 25. exd4 cxd4 26. Nxd4 b5 27. Nf3 Qd6 28. g3 b4 29. c4 Qc6 30. b3 Rd3 31. Rf1 Qe4 32. Ne5 Rc3+ 33. Kb2 Re3 34. Ka1 Re2 35. Qc5 Rxa2+ 36. Kxa2 Qe2+ 37. Kb1 Qxf1+ 38. Kc2 Qe2+ 39. Kc1 Rd8 40. Nd7 Qe1+ 0-1

[Event "IV Open RGCC 2018"]
[Site "Gijon"]
[Date "2018.07.26"]
[Round "5"]
[White "Quesada Perez, Yasser"]
[Black "Valenzuela Gomez, Fernando"]
[Result "1-0"]
[ECO "B23"]
[WhiteElo "2531"]
[BlackElo "2389"]
[Annotator "RC"]
[PlyCount "77"]
[EventDate "2018.07.24"]
[EventType "swiss"]
[EventCountry "ESP"]
[SourceTitle "playchess.com"]
[Source "ChessBase"]
[SourceQuality "1"]
[TimeControl "5400+30"]

1. e4 {[%emt 0:00:00]} c5 {[%emt 0:00:38]} 2. Nc3 {[%emt 0:00:00]} a6 {[%emt 0:00:10]} 3. g3 {[%emt 0:00:00]} g6 {[%emt 0:02:15]} 4. Bg2 {[%emt 0:00:21]} Bg7 {[%emt 0:00:17]} 5. d3 {[%emt 0:00:06]} d6 {[%emt 0:00:17]} 6. f4 {[%emt 0:00:22]} Nc6 {[%emt 0:00:06]} 7. Nf3 {[%emt 0:00:05]} Bd7 {[%emt 0:00:15]} 8. O-O {[%emt 0:00:24]} Rc8 {[%emt 0:00:16]} 9. Nd5 {[%emt 0:06:18]} Nf6 {[%emt 0:12:47]} 10. c3 {[%emt 0:01:51]} O-O {[%emt 0:00:08]} 11. f5 {[%emt 0:08:08]} Nxd5 {[%emt 0:19:47]} 12. exd5 {[%emt 0:00:07]} Ne5 {[%emt 0:00:35]} 13. Nh4 {[%emt 0:06:35]} b5 14. Be4 {[%emt 0:16:10]} Be8 {[%emt 0:17:55]} 15. Bg5 {[%emt 0:01:11]} Nd7 {[%emt 0:05:14]} 16. Qd2 {[%emt 0:09:18]} Nf6 {[%emt 0:00:05]} 17. Bf3 {[%emt 0:04:11]} Kh8 {[%emt 0:03:07]} 18. Kh1 {[%emt 0:04:10]} Qd7 {[%emt 0:02:17]} 19. g4 {[%emt 0:01:47]} Ng8 {[%emt 0:04:35]} 20. Rae1 {[%emt 0:00:21]} Be5 {[%emt 0:05:29]} 21. Be4 {[%emt 0:04:10]} Bf6 {[%emt 0:04:12]} 22. Rf3 {[%emt 0:03:04]} Kg7 {[%emt 0:01:25]} 23. Ng2 {[%emt 0:02:04]} c4 {[%emt 0:01:34]} 24. Be3 {[%emt 0:03:51]} cxd3 {[%emt 0:00:38]} 25. Rh3 {[%emt 0:00:10]} Kh8 {[%emt 0:01:37]} 26. Nf4 {[%emt 0:00:30]} Qb7 {[%emt 0:08:20]} 27. fxg6 {[%emt 0:01:39]} fxg6 {[%emt 0:00:02]} 28. Qxd3 {[%emt 0:00:18]} e5 {[%emt 0:02:54]} 29. dxe6 {[%emt 0:04:00]} Bc6 {[%emt 0:00:42]} 30. Bxc6 {[%emt 0:02:32]} Qxc6+ {[%emt 0:00:14]} 31. Kg1 {[%emt 0:00:06]} Ne7 {[%emt 0:03:07]} 32. Nxg6+ {[%emt 0:01:38]} Nxg6 {[%emt 0:00:04]} 33. Qxg6 {[%emt 0:00:08]} Rc7 {[%emt 0:00:08]} 34. Rf1 {[%emt 0:02:55]} Rg7 {[%emt 0:01:20]} 35. e7 {[%emt 0:03:31]} Rff7 {[%emt 0:02:20]} 36. Rxh7+ {[%emt 0:00:11]} Rxh7 {[%emt 0:00:17]} 37. Rxf6 {[%emt 0:00:04]} Rhg7 {[%emt 0:01:11]} 38. Qh5+ {[%emt 0:00:06]} Rh7 39. Qxf7 1-0

[Event "IV Open RGCC 2018"]
[Site "Gijon"]
[Date "2018.07.26"]
[Round "5"]
[White "Lopez Rivera, Jesus"]
[Black "Cori Quispe, Kevin Joel"]
[Result "0-1"]
[ECO "C77"]
[WhiteElo "2330"]
[BlackElo "2487"]
[Annotator "RC"]
[PlyCount "96"]
[EventDate "2018.07.24"]
[EventType "swiss"]
[EventCountry "ESP"]
[SourceTitle "playchess.com"]
[Source "ChessBase"]
[SourceQuality "1"]
[TimeControl "5400+30"]

1. e4 e5 2. Nf3 Nc6 3. Bb5 a6 4. Ba4 Nf6 5. d4 exd4 6. O-O Be7 7. Re1 b5 8. Bb3 O-O 9. e5 Ne8 10. Bd5 Rb8 11. Bxc6 dxc6 12. Nxd4 Qd7 13. Be3 c5 14. Nb3 Qc6 15. Qf3 Qxf3 16. gxf3 f6 17. e6 c4 18. Bc5 Bd6 19. Bxd6 Nxd6 20. Nc5 Re8 21. Nc3 Rb6 22. b4 cxb3 23. cxb3 Rc6 24. b4 Nc4 25. Re2 Bxe6 26. Rae1 Ne5 27. Kg2 Kf7 28. Kg3 Bc4 29. Re3 Re7 30. a3 Ng6 31. f4 a5 32. h4 axb4 33. axb4 h5 34. Ra1 Rd6 35. N3e4 Rd4 36. Rae1 Bd5 37. Nc3 c6 38. N3e4 Bxe4 39. Nxe4 Ra7 40. Rc1 Ne7 41. Kf3 Nf5 42. Rxc6 Nxe3 43. fxe3 Rxb4 44. Nd6+ Kg6 45. Rb6 Ra5 46. f5+ Kh7 47. e4 Ra3+ 48. Kf4 Rbb3 0-1

[Event "IV Open RGCC 2018"]
[Site "Gijon"]
[Date "2018.07.27"]
[Round "6"]
[White "Epishin, Vladimir"]
[Black "Rodriguez Lopez, Rafael"]
[Result "1-0"]
[ECO "D85"]
[WhiteElo "2541"]
[BlackElo "2312"]
[Annotator "ChessBase"]
[PlyCount "73"]
[EventDate "2018.07.24"]
[EventType "swiss"]
[EventCountry "ESP"]
[SourceTitle "playchess.com"]
[Source "ChessBase"]
[SourceQuality "1"]
[TimeControl "5400+30"]

1. d4 {[%emt 0:00:00]} Nf6 {[%emt 0:00:05]} 2. c4 {[%emt 0:02:19]} g6 {[%emt 0:00:08]} 3. Nc3 {[%emt 0:00:18]} d5 {[%emt 0:00:05]} 4. cxd5 {[%emt 0:00:09]} Nxd5 {[%emt 0:00:05]} 5. Bd2 {[%emt 0:00:04]} Bg7 {[%emt 0:00:13]} 6. Nf3 {[%emt 0:00:06]} O-O {[%emt 0:00:13]} 7. Rc1 {[%emt 0:00:39]} Nb6 {[%emt 0:00:09]} 8. Bf4 {[%emt 0:02:17]} c5 {[%emt 0:00:37]} 9. dxc5 {[%emt 0:01:23]} Bxc3+ {[%emt 0:00:14]} 10. bxc3 {[%emt 0:01:28]} Qxd1+ {[%emt 0:00:13]} 11. Kxd1 {[%emt 0:01:25]} Na4 {[%emt 0:01:37]} 12. Nd2 {[%emt 0:00:03]} Nxc5 {[%emt 0:01:48]} 13. e4 {[%emt 0:00:16]} Rd8 {[%emt 0:02:30]} 14. f3 {[%emt 0:02:09]} Nd3 {[%emt 0:01:26]} 15. Bxd3 {[%emt 0:00:05]} Rxd3 {[%emt 0:00:05]} 16. Kc2 {[%emt 0:00:25]} Rd8 {[%emt 0:00:37]} 17. Nb3 {[%emt 0:00:45]} Nc6 {[%emt 0:01:03]} 18. Rhd1 {[%emt 0:00:05]} Be6 {[%emt 0:00:18]} 19. Nc5 {[%emt 0:01:27]} Bxa2 {[%emt 0:01:23]} 20. Nxb7 {[%emt 0:00:11]} Rxd1 {[%emt 0:00:41]} 21. Rxd1 {[%emt 0:00:09]} a5 {[%emt 0:02:43]} 22. Ra1 {[%emt 0:02:31]} Bc4 {[%emt 0:00:23]} 23. Nc5 {[%emt 0:00:03]} e5 {[%emt 0:01:21]} 24. Be3 {[%emt 0:02:18]} f6 {[%emt 0:00:53]} 25. Nd7 {[%emt 0:04:43]} a4 {[%emt 0:01:58]} 26. Nxf6+ {[%emt 0:00:29]} Kg7 {[%emt 0:00:26]} 27. Nd7 {[%emt 0:03:25]} Bb3+ {[%emt 0:00:38]} 28. Kb2 {[%emt 0:04:43]} Rd8 {[%emt 0:00:32]} 29. Nb6 {[%emt 0:00:57]} Rd3 {[%emt 0:02:01]} 30. Bc1 {[%emt 0:09:16]} Rd1 {[%emt 0:00:08]} 31. Nxa4 {[%emt 0:00:44]} Bxa4 {[%emt 0:00:25]} 32. Rxa4 {[%emt 0:00:02]} Rg1 {[%emt 0:00:11]} 33. g4 {[%emt 0:01:28]} Rf1 {[%emt 0:01:11]} 34. Ra6 {[%emt 0:02:25]} Nd8 {[%emt 0:00:05]} 35. Bg5 {[%emt 0:00:35]} Nf7 {[%emt 0:00:10]} 36. Bf6+ {[%emt 0:00:35]} Kh6 {[%emt 0:00:28]} 37. Ra7 {[%emt 0:00:21]} 1-0

[Event "IV Open RGCC 2018"]
[Site "Gijon"]
[Date "2018.07.27"]
[Round "6"]
[White "Cori Quispe, Kevin Joel"]
[Black "Quesada Perez, Yasser"]
[Result "1/2-1/2"]
[ECO "B49"]
[WhiteElo "2487"]
[BlackElo "2531"]
[Annotator "RC"]
[PlyCount "116"]
[EventDate "2018.07.24"]
[EventType "swiss"]
[EventCountry "ESP"]
[SourceTitle "playchess.com"]
[Source "ChessBase"]
[SourceQuality "1"]
[TimeControl "5400+30"]

1. e4 {[%emt 0:00:00]} c5 {[%emt 0:00:05]} 2. Nf3 {[%emt 0:00:00]} e6 {[%emt 0:00:02]} 3. d4 {[%emt 0:00:00]} cxd4 {[%emt 0:00:04]} 4. Nxd4 {[%emt 0:00:05]} Nc6 {[%emt 0:00:05]} 5. Nc3 {[%emt 0:00:11]} Qc7 {[%emt 0:00:03]} 6. Be3 {[%emt 0:00:57]} a6 {[%emt 0:00:05]} 7. Be2 {[%emt 0:00:11]} Nf6 {[%emt 0:00:13]} 8. O-O {[%emt 0:00:19]} Be7 {[%emt 0:00:06]} 9. f4 {[%emt 0:01:11]} d6 {[%emt 0:00:05]} 10. a4 {[%emt 0:00:09]} O-O {[%emt 0:00:41]} 11. Bf3 {[%emt 0:01:13]} Nxd4 {[%emt 0:05:53]} 12. Qxd4 {[%emt 0:00:16]} e5 {[%emt 0:00:05]} 13. Qd2 {[%emt 0:04:29]} exf4 {[%emt 0:00:22]} 14. Bxf4 {[%emt 0:00:06]} Be6 {[%emt 0:00:08]} 15. Rfd1 {[%emt 0:02:20]} Rfd8 {[%emt 0:01:25]} 16. a5 {[%emt 0:02:49]} Rac8 {[%emt 0:06:21]} 17. Kh1 {[%emt 0:03:30]} h6 {[%emt 0:10:18]} 18. h3 {[%emt 0:02:11]} Nd7 {[%emt 0:08:38]} 19. Bg4 {[%emt 0:37:51]} Nf6 {[%emt 0:13:30]} 20. Be2 {[%emt 0:00:19]} Nh7 {[%emt 0:19:06]} 21. Be3 {[%emt 0:02:49]} Bg5 {[%emt 0:01:27]} 22. Ra4 {[%emt 0:01:49]} Bxe3 {[%emt 0:01:18]} 23. Qxe3 {[%emt 0:00:05]} Nf6 {[%emt 0:01:38]} 24. Rb4 {[%emt 0:06:57]} Nd7 {[%emt 0:04:49]} 25. Qd4 {[%emt 0:04:35]} Ne5 {[%emt 0:09:27]} 26. Rb6 {[%emt 0:03:26]} Nc6 {[%emt 0:00:18]} 27. Qa4 {[%emt 0:00:10]} Rd7 {[%emt 0:00:10]} 28. Rd2 {[%emt 0:04:25]} Ne5 {[%emt 0:00:30]} 29. Qb4 {[%emt 0:04:51]} Rcd8 {[%emt 0:00:08]} 30. Na4 {[%emt 0:02:09]} Bc4 {[%emt 0:02:17]} 31. b3 {[%emt 0:01:31]} Be6 {[%emt 0:03:26]} 32. c4 {[%emt 0:00:41]} Nc6 {[%emt 0:00:37]} 33. Qc3 {[%emt 0:03:04]} Ne7 {[%emt 0:00:09]} 34. Rd3 {[%emt 0:03:24]} Kh8 {[%emt 0:00:04]} 35. Qd2 {[%emt 0:04:18]} Nc8 {[%emt 0:00:40]} 36. Bf3 {[%emt 0:00:17]} f6 {[%emt 0:04:43]} 37. e5 {[%emt 0:01:37]} dxe5 {[%emt 0:00:05]} 38. Rxb7 {[%emt 0:00:07]} Qxb7 {[%emt 0:00:06]} 39. Bxb7 {[%emt 0:00:05]} Rxd3 {[%emt 0:00:02]} 40. Qb4 {[%emt 0:00:45]} Nd6 {[%emt 0:01:23]} 41. Bc6 {[%emt 0:00:32]} Nf5 {[%emt 0:01:49]} 42. Nc5 {[%emt 0:00:18]} Rd1+ {[%emt 0:00:03]} 43. Kh2 {[%emt 0:00:03]} Bg8 {[%emt 0:07:00]} 44. Bf3 {[%emt 0:02:20]} Rc1 {[%emt 0:00:25]} 45. Qa3 {[%emt 0:01:01]} Re1 {[%emt 0:00:27]} 46. Qb4 {[%emt 0:00:49]} Rc1 {[%emt 0:00:04]} 47. Ne4 {[%emt 0:01:39]} Nd4 {[%emt 0:00:26]} 48. Nd6 {[%emt 0:00:39]} f5 {[%emt 0:02:29]} 49. Bd5 {[%emt 0:00:43]} f4 {[%emt 0:00:34]} 50. Bxg8 {[%emt 0:00:54]} Kxg8 {[%emt 0:00:35]} 51. Qb7 {[%emt 0:00:40]} Rf8 {[%emt 0:00:36]} 52. Qd5+ {[%emt 0:00:06]} Kh7 {[%emt 0:00:01]} 53. Qxe5 {[%emt 0:00:56]} f3 {[%emt 0:00:00]} 54. Qe4+ {[%emt 0:00:05]} Kg8 {[%emt 0:00:09]} 55. Qd5+ {[%emt 0:00:48]} Kh7 {[%emt 0:00:01]} 56. Qe4+ {[%emt 0:00:40]} Kg8 {[%emt 0:00:38]} 57. Qd5+ {[%emt 0:00:27]} Kh7 {[%emt 0:00:11]} 58. Qe4+ {[%emt 0:00:27]} Kg8 {[%emt 0:01:28]} 1/2-1/2

[Event "IV Open RGCC 2018"]
[Site "Gijon"]
[Date "2018.07.27"]
[Round "6"]
[White "Campora, Daniel Hugo"]
[Black "Centron Antuna, Daniel"]
[Result "1/2-1/2"]
[ECO "B07"]
[WhiteElo "2405"]
[BlackElo "2231"]
[Annotator "NA"]
[PlyCount "100"]
[EventDate "2018.07.24"]
[EventType "swiss"]
[EventCountry "ESP"]
[SourceTitle "playchess.com"]
[Source "ChessBase"]
[SourceQuality "1"]
[TimeControl "5400+30"]

{[%evp 18,82,49,28,34,20,37,12,31,29,32,14,13,13,34,20,19,13,32767,0,0,2,2,0,56,-8,0,0,52,32767,169,109,119,66,94,-53,-44,-66,-47,-56,-30,-19,-6,-7,32767,-12,32767,-8,0,-19,-8,0,40,9,10,0,12,41,8,0,11,0,0,0,0,0,0]} 1. e4 d6 2. d4 Nf6 3. Nc3 g6 4. Bg5 h6 5. Bxf6 {B07: Pirc Defence: Miscellaneous Systems} (5. Bf4 Bg7 6. Qd2 g5 7. Bg3 Nh5 8. O-O-O c6 9. Nge2 b5 10. f4 Qa5 11. a3 Nd7 12. Kb1 Nb6 13. fxg5 Nc4 14. Qd3 hxg5 15. Nc1 Qb6 16. Nb3 {0-1 (38) Amin,B (2689)-Petrosian,T (2601) Riadh 2017}) 5... exf6 6. Bd3 Bg7 7. Nge2 O-O 8. O-O Nc6 9. f4 f5 $146 ({Predecessor:} 9... Bg4 10. Qe1 Nb4 11. h3 Nxd3 12. cxd3 Bd7 {½-½ (52) Herres,J-Volk,T Germany 1977}) 10. exf5 $1 gxf5 11. d5 Ne7 12. Kh1 c6 13. dxc6 bxc6 14. Qd2 Rb8 15. Nd1 Be6 16. Ng3 Qd7 ({Don't go for} 16... Bxb2 $2 17. Nxb2 Rxb2 18. Qc3 $18) 17. c3 d5 18. Nh5 Bh8 19. Qf2 d4 20. c4 c5 ({Black should play} 20... a5 $11) 21. Qh4 (21. b3 $14) 21... Ng6 22. Qh3 Kh7 23. b3 Qe7 (23... Rb6 $14) 24. Nf2 Qh4 25. Qf3 Bc8 26. Qh3 (26. Rae1 $16) 26... Qxh3 27. Nxh3 Nh4 28. Ng3 Kg6 29. Kg1 Bb7 30. Nxf5 Nxf5 31. g4 Bc8 32. Nf2 Rg8 33. gxf5+ Bxf5 34. Kh1 Rbe8 35. Rg1+ Kf6 36. Rxg8 Rxg8 37. Re1 Bxd3 38. Nxd3 Kf5 39. Nxc5 Kxf4 40. Nd3+ Kf3 $1 41. b4 Bf6 $11 42. c5 Bh4 43. Ne5+ Kf2 44. Rd1 Bf6 45. Nc4 Ke2 46. Rd2+ Kf1 47. Rd1+ Ke2 48. Rd2+ Kf1 49. Rd1+ Ke2 50. Rd2+ Kf1 1/2-1/2

[Event "IV Open RGCC 2018"]
[Site "Gijon"]
[Date "2018.07.27"]
[Round "6"]
[White "Torrado Quintela, Julio"]
[Black "Murshed, Niaz"]
[Result "1/2-1/2"]
[ECO "B06"]
[WhiteElo "2195"]
[BlackElo "2403"]
[Annotator "NA"]
[PlyCount "84"]
[EventDate "2018.07.24"]
[EventType "swiss"]
[EventCountry "ESP"]
[SourceTitle "playchess.com"]
[Source "ChessBase"]
[SourceQuality "1"]
[TimeControl "5400+30"]

1. e4 g6 2. d4 Bg7 3. Nc3 d6 4. Bg5 Nd7 5. Qd2 c5 6. dxc5 {B06: Modern Defence} (6. Nge2 a6 7. O-O-O b5 8. h4 Bb7 9. h5 cxd4 10. Nxd4 Ngf6 11. h6 Bf8 12. f3 e5 13. Nb3 Be7 {1-0 (37) Mamedov,N (2610)-Abbasov,F (2553) Baku 2010}) 6... Nxc5 7. O-O-O $146 ({Predecessor:} 7. f4 a6 8. Bd3 b5 9. Nf3 Bb7 10. a3 Nf6 11. Qe2 Ne6 12. f5 gxf5 13. Bc1 fxe4 14. Nxe4 {1-0 (42) Dineley,R (2258)-McNab,C (2439) Sunningdale 2008}) 7... Qa5 8. Bb5+ Kf8 9. Nge2 Be6 10. a3 $1 Nxe4 (10... a6 $5 11. Bd3 $8 Nxd3+ 12. cxd3 Bxc3 13. Nxc3 Bb3 $11) 11. Nxe4 Qxb5 12. N2c3 Qc6 13. Rhe1 {[#]} ({White should try} 13. Be3 $1 $15) 13... Rc8 ({Better is} 13... h6 $1 $17 {[%cal Rh6g5]} 14. Bf4 Rc8) 14. Kb1 $2 {[#]} ({White should try} 14. Be3 $1 $15) 14... d5 $1 15. Ng3 Bxc3 (15... d4 $19 {has better winning chances.} 16. Nce2 h6) 16. Qxc3 Qxc3 17. bxc3 Rxc3 18. Kb2 Rc6 19. Ne2 Rb6+ 20. Kc1 Ra6 21. Kb2 (21. Rd3 $142) 21... f6 ({Lieber} 21... Kg7 22. Rd3 h6) 22. Be3 Bf7 23. c4 dxc4 24. Rd8+ Kg7 25. Red1 $17 b5 26. Nc3 g5 27. R1d7 Nh6 28. Rxh8 Kxh8 29. Rxe7 Kg8 30. Nxb5 Nf5 31. Rxa7 Rxa7 32. Bxa7 Nh4 33. g3 Nf3 34. Nc7 Nxh2 35. a4 Nf3 36. a5 Bg6 37. a6 Be4 38. Be3 Kf7 39. a7 h5 40. Kc3 h4 41. gxh4 gxh4 42. Kxc4 Bb7 1/2-1/2

[Event "IV Open RGCC 2018"]
[Site "Gijon"]
[Date "2018.07.27"]
[Round "7"]
[White "Martinez Alcantara, Jose Eduardo"]
[Black "Cori Quispe, Kevin Joel"]
[Result "1/2-1/2"]
[ECO "C92"]
[WhiteElo "2545"]
[BlackElo "2487"]
[Annotator "ChessBase"]
[PlyCount "26"]
[EventDate "2018.07.24"]
[EventType "swiss"]
[EventCountry "ESP"]
[SourceTitle "playchess.com"]
[Source "ChessBase"]
[SourceQuality "1"]
[TimeControl "5400+30"]

1. e4 {[%emt 0:00:00]} e5 {[%emt 0:00:41]} 2. Nf3 {[%emt 0:00:00]} Nc6 {[%emt 0:00:07]} 3. Bb5 {[%emt 0:01:56]} a6 {[%emt 0:00:56]} 4. Ba4 {[%emt 0:00:07]} Nf6 {[%emt 0:00:26]} 5. O-O {[%emt 0:00:06]} Be7 {[%emt 0:00:49]} 6. Re1 {[%emt 0:00:09]} b5 {[%emt 0:00:33]} 7. Bb3 {[%emt 0:00:04]} O-O {[%emt 0:01:08]} 8. h3 {[%emt 0:04:54]} d6 {[%emt 0:00:46]} 9. c3 {[%emt 0:00:06]} Bb7 {[%emt 0:01:20]} 10. d4 {[%emt 0:02:32]} Re8 {[%emt 0:02:17]} 11. Ng5 {[%emt 0:03:07]} Rf8 {[%emt 0:00:22]} 12. Nf3 {[%emt 0:03:38]} Re8 {[%emt 0:01:10]} 13. Ng5 {[%emt 0:08:01]} Rf8 {[%emt 0:00:06]} 1/2-1/2